[Event "Khanty-Mansiysk FIDE GP (Women)"]
[Site "Khanty-Mansiysk"]
[Date "2014.04.15"]
[Round "6"]
[White "Ushenina, Anna"]
[Black "Muzychuk, Anna"]
[Result "1/2-1/2"]
[ECO "E55"]
[WhiteElo "2501"]
[BlackElo "2560"]
[Annotator "ChessBase Website"]
[PlyCount "121"]
[EventDate "2014.04.09"]
[EventType "tourn"]
[EventRounds "11"]
[EventCountry "RUS"]
[EventCategory "10"]
[SourceTitle "CBM 160"]
[Source "ChessBase"]
[SourceDate "2014.05.15"]
[SourceVersion "1"]
[SourceVersionDate "2014.05.15"]
[SourceQuality "1"]
[TimeControl "40/5400+30:1800+30"]
[WhiteClock "1:30:00"]
[BlackClock "1:30:00"]

1. d4 {[%emt 0:00:00]} Nf6 {[%emt 0:00:00]} 2. c4 {[%emt 0:00:00]} e6 {[%emt 0:
00:00]} 3. Nc3 {[%emt 0:00:00]} Bb4 {[%emt 0:00:00]} 4. e3 {[%emt 0:00:00]} O-O
{[%emt 0:00:45]} 5. Bd3 {[%emt 0:00:00]} c5 {[%emt 0:00:46]} 6. Nf3 {[%emt 0:
01:14]} d5 {[%emt 0:00:49]} 7. O-O {[%emt 0:00:08]} dxc4 {[%emt 0:00:44]} 8.
Bxc4 {[%emt 0:00:06]} Nbd7 {[%emt 0:00:23]} 9. a3 {[%emt 0:00:23]} cxd4 {
[%emt 0:01:08]} 10. axb4 {[%emt 0:00:07]} dxc3 {[%emt 0:00:03]} 11. bxc3 {
[%emt 0:00:30]} Qc7 {[%emt 0:00:58]} 12. Be2 {[%emt 0:00:24]} Nd5 {[%emt 0:06:
16]} 13. Bb2 {[%emt 0:02:34]} (13. Ba3 N7b6 14. Qd4 Qxc3 15. Qg4 Bd7 16. b5
Rfc8 17. Bd6 Nc4 18. Rfc1 Ncxe3 19. Rxc3 Nxg4 20. Rxc8+ Rxc8 21. h3 Nc3 22. Bf1
Nf6 23. Rxa7 Bxb5 24. Rxb7 Bc6 25. Rb8 Rxb8 26. Bxb8 Bxf3 27. gxf3 Ncd5 28. Kh2
Nh5 29. Bb5 Ndf4 30. Bd6 Ng6 31. Bc6 Nh4 32. Be7 f6 33. Bd6 Kf7 34. Bc7 g5 35.
Bb6 h6 36. Ba7 Nf4 37. Bb7 Ne2 38. Bb6 f5 39. Bc7 Kf6 40. Bd8+ Kg6 41. Bc7 Kf7
42. Be5 Ng6 {Potkin,V (2665)-Aleksandrov,A (2604) Nakhchivan 2013 0-1 (64)})
13... Nxc3 {[%emt 0:05:58]} 14. Qd2 {[%emt 0:04:22]} Nxe2+ {[%emt 0:00:52]} 15.
Qxe2 {[%emt 0:03:33]} b5 $146 {[%emt 0:24:03]} (15... Nb6 16. Rfc1 Qd8 17. Rd1
Bd7 18. Ne5 f6 19. Nxd7 Nxd7 20. Qb5 Rf7 21. Qxb7 Rb8 22. Qe4 Qe8 23. h3 Nf8
24. Ra5 Rc7 25. Ba3 Rd8 26. Rxd8 Qxd8 27. Rc5 Rd7 28. b5 Rd1+ 29. Kh2 Ra1 30.
Qb4 Ra2 31. f4 h6 32. Qc3 Kh7 33. Bb2 Qd1 34. Rc7 e5 35. fxe5 Ne6 36. Qc4 Rxb2
37. Qxe6 Rxg2+ 38. Kxg2 Qe2+ 39. Kg3 {1/2-1/2 (39) Korobov,A (2573)-Moiseenko,
A (2643) Moscow 2008}) 16. Qxb5 {[%emt 0:09:41]} Rb8 {[%emt 0:08:11]} 17. Qd3 {
[%emt 0:07:40]} Rd8 {[%emt 0:03:55]} 18. Qd4 $14 {[%emt 0:22:28][%csl Gd4,Rg7]
The duel of the Annas was a typical affair for Ushenina. She proved excellent
preparation, obtained a great advantage from the opening, and then spoilt it
by playing inaccurately and she let Muzychuk escape with a draw.} Nf6 {[%emt 0:
06:15]} 19. Qh4 {[%emt 0:09:22]} Qe7 {[%emt 0:01:13]} 20. Bxf6 {[%emt 0:11:22]}
Qxf6 {[%emt 0:00:28]} 21. Qxf6 {[%emt 0:00:26]} gxf6 {[%emt 0:00:01]} 22. Nd4 {
[%emt 0:00:26]} Bd7 {[%emt 0:07:27]} 23. Rxa7 {[%emt 0:08:17]} Rxb4 {[%emt 0:
00:33]} 24. h3 {[%emt 0:01:06]} e5 {[%emt 0:02:50]} 25. Nf3 {[%emt 0:02:42]}
Be6 {[%emt 0:01:06]} 26. Rfa1 {[%emt 0:00:40]} Rc8 {[%emt 0:05:23]} 27. Ra8 {
[%emt 0:00:15]} Rxa8 {[%emt 0:00:07]} 28. Rxa8+ {[%emt 0:00:07]} Kg7 {[%emt 0:
00:02]} 29. Rd8 {[%emt 0:00:49]} Rb2 {[%emt 0:01:02]} 30. Rd2 {[%emt 0:04:52]}
Rxd2 {[%emt 0:01:17]} 31. Nxd2 {[%emt 0:00:02]} Bd5 {[%emt 0:00:16]} 32. Kh2 {
[%emt 0:00:19]} Bc6 {[%emt 0:01:15]} 33. Kg3 {[%emt 0:00:20]} Bd5 {[%emt 0:00:
45]} 34. f3 {[%emt 0:00:58]} Kg6 {[%emt 0:00:24]} 35. Kg4 {[%emt 0:01:22]} Be6+
{[%emt 0:00:41]} 36. Kh4 {[%emt 0:00:23]} Bd5 {[%emt 0:00:39]} 37. e4 {[%emt 0:
03:24]} Be6 {[%emt 0:01:03]} 38. g4 {[%emt 0:00:20]} Bd7 {[%emt 0:01:14]} 39.
Nc4 {[%emt 0:01:24]} Bb5 {[%emt 0:01:13]} 40. Nd6 {[%emt 0:00:00]} Bd7 {
[%emt 0:00:00]} 41. Kg3 {[%emt 0:05:04]} Be6 {[%emt 0:07:47]} 42. Ne8 {[%emt 0:
01:59]} Bd7 {[%emt 0:00:15]} 43. Nc7 {[%emt 0:00:06]} Bc6 {[%emt 0:02:03]} 44.
Kh4 {[%emt 0:02:15]} Ba4 {[%emt 0:01:36]} 45. Nd5 {[%emt 0:00:18]} Bd1 {
[%emt 0:01:08]} 46. Kg3 {[%emt 0:00:39]} Bb3 {[%emt 0:01:58]} 47. Ne7+ {
[%emt 0:01:54]} Kg7 {[%emt 0:00:08]} 48. h4 {[%emt 0:00:48]} Kf8 {[%emt 0:02:
51]} 49. Nc6 {[%emt 0:01:04]} Kg7 {[%emt 0:00:42]} 50. Ne7 {[%emt 0:08:58]} Kf8
{[%emt 0:00:21]} 51. Nf5 {[%emt 0:00:09]} Be6 {[%emt 0:00:15]} 52. Ne3 {
[%emt 0:00:33]} Kg7 {[%emt 0:00:28]} 53. h5 {[%emt 0:05:09]} Bd7 {[%emt 0:05:
31]} 54. Kf2 {[%emt 0:00:59]} Be6 {[%emt 0:00:58]} 55. Nd5 {[%emt 0:11:32]} Bd7
{[%emt 0:02:04]} 56. Ke3 {[%emt 0:00:08]} Ba4 {[%emt 0:01:10]} 57. Ne7 {
[%emt 0:00:28]} Bd7 {[%emt 0:00:54]} 58. Kd3 {[%emt 0:01:41]} Bb5+ {[%emt 0:01:
43]} 59. Ke3 {[%emt 0:00:08]} Bd7 {[%emt 0:00:04]} 60. Kd3 {[%emt 0:00:54]}
Bb5+ {[%emt 0:00:07]} 61. Ke3 {[%emt 0:00:29]} 1/2-1/2

[Event "Match/Team URS-World 20,5-19,5"]
[Site "Belgrade"]
[Date "1970.03.31"]
[Round "2.3"]
[White "Portisch, Lajos"]
[Black "Kortschnoj, Viktor Lvovich"]
[Result "1/2-1/2"]
[ECO "E55"]
[WhiteElo "2630"]
[BlackElo "2670"]
[Annotator "Portisch/Kortchnoi"]
[PlyCount "62"]
[EventDate "1970.03.29"]
[EventType "team"]
[EventRounds "4"]
[EventCountry "YUG"]
[SourceTitle "MCL"]
[Source "ChessBase"]
[SourceDate "1999.07.01"]
[SourceVersion "1"]
[SourceVersionDate "1999.07.01"]
[SourceQuality "1"]
[WhiteTeam "World"]
[BlackTeam "Soviet Union"]
[BlackTeamCountry "URS"]
[TimeControl "40/9000:16/5400:0"]

1. d4 Nf6 2. c4 e6 3. Nc3 Bb4 4. e3 O-O 5. Bd3 d5 6. Nf3 c5 7. O-O dxc4 8. Bxc4
Nbd7 9. Qb3 $5 {P/K} (9. Qc2 {Portisch=:P/Kortschnoj=:K}) 9... a6 (9... cxd4
10. exd4 (10. Qxb4 dxc3 11. Qxc3 b6) 10... Bxc3 11. bxc3 b6 {K}) 10. a4 Ba5 $5
{P} (10... Nb6 {P}) (10... Qe7 11. Rd1 Rd8 {/\ 12... Nf8 K}) (10... b6 11. Rd1
Bb7 12. d5 b5 13. axb5 axb5 14. Rxa8 Bxa8 15. Bxb5 exd5 16. Bd2 Qe7 {1/2-1/2 
(16) Petrosian,T-Ivkov,B Zagreb 1965}) 11. Rd1 cxd4 $146 (11... Qe7 12. Bd2 Bc7
13. a5 b5 14. axb6 Nxb6 15. Na4 Nxa4 16. Rxa4 Bb7 17. Be2 Be4 18. Be1 Bd5 19.
Bc4 Rfb8 20. Qc2 Bb7 21. Be2 Bd5 22. Bc4 {1/2-1/2 (22) Roizman,A-Antoshin,V
Leningrad 1962}) 12. exd4 Qb6 $1 {P} (12... Nb6 $6 13. Ne5 $1 $16 {P} (13. Bg5
{K})) 13. Qc2 Qc7 14. Bd3 (14. Qe2 Bxc3 15. bxc3 Nb6 16. Bd3 Nbd5 $1 {/\ Nc3,
Nf4 K}) 14... h6 $6 {P} (14... b6 $1 {K} 15. d5 $5 (15. Qe2 Bxc3 16. bxc3 Qxc3
$13) 15... Bxc3 (15... exd5 16. Nxd5 $16) 16. dxe6 Be5 (16... Ne5 17. exf7+ $13
) 17. exd7 Bxd7 $10 {P}) 15. Bd2 {/\ 16.Qc1 K} Bb4 (15... b6 $5 {P} 16. Rab1
Bb4 17. Qb3 {P}) 16. Qb3 $1 {P} (16. Qc1 Re8 $1 {K}) (16. Rac1 Qa5 {P}) 16...
Bd6 (16... Qa5 $6 17. Bf4 $1 {/\ Ne5 P}) 17. Rac1 Qd8 18. Bb1 b6 19. Ne5 $1 {K}
(19. Ne4 $5 {K} Nxe4 20. Bxe4 Ra7 $1 21. Ne5 Bxe5 22. dxe5 Nc5 23. Qe3 Nxe4 (
23... Rd7 24. Bc2 $16) 24. Qxe4 Qd5 $1 25. Qxd5 exd5 26. Be3 $14 {^- P} (26.
Bb4)) 19... Bb7 (19... Nxe5 $6 {P} 20. dxe5 Bxe5 21. Bxh6 Qc7 22. Be3 $16 {P/K}
) 20. Bf4 Qe7 21. Re1 {/\ 22.Ng6! P fg 23.Re6! K} Rfe8 22. Qc2 Rac8 (22... Nf8
23. Qd2 {/\ Re1-e3-g3 K}) 23. Nxd7 (23. Qd3 Nf8 {P}) 23... Qxd7 $2 {K} (23...
Bxf4 {!? P ! K} 24. Nxf6+ Qxf6 25. Qh7+ (25. Nd5 Bxh2+ 26. Kh1 Bxd5 27. Qxc8
Kf8 {K}) 25... Kf8 26. Nd5 {!? P ! K} Bxd5 27. Rxc8 Rxc8 28. Qh8+ Ke7 29. Qxc8
Qxd4 $13 {P/K}) 24. Be5 Qd8 $2 {K} (24... Be7 25. d5 $1 Rxc3 {K}) 25. Bxf6 Qxf6
26. Qh7+ Kf8 27. d5 $2 {P/K} (27. Be4 $1 Bxe4 28. Nxe4 Rxc1 29. Qh8+ Ke7 30.
Qxe8+ Kxe8 31. Nxf6+ $18 {P/K}) (27. Nd5 $2 Bxd5 28. Rxc8 Rxc8 29. Qh8+ Ke7 30.
Qxc8 Qf4 $1 $17 {P}) 27... Ke7 $1 {P} (27... Rxc3 {K}) 28. Rcd1 (28. dxe6 $142
{K} fxe6 29. Be4 $1 {P/K} Bxe4 (29... Rh8 $2 30. Bxb7 Rxh7 31. Nd5+ Kf7 32.
Nxf6 Rxc1 33. Rxc1 Kxf6 34. Rc6 $16 {P}) 30. Qxe4 Kf8 31. Qb7 Qf4 $1 32. g3 Qb4
$1 $10 {P}) (28. Ba2 {K}) 28... Rh8 29. Qd3 Rhd8 $1 {P} 30. Qe2 Bc5 31. Ba2 (
31. dxe6 $5 Rxd1 32. exf7+ Kxf7 $44 {^^ P}) 31... Kf8 (31... Kf8 32. Ne4 Qe5
$10 {P}) 1/2-1/2